[Event "Late-Titled-Tuesday-Blitz-March-26-2024"]
[Site "Chess.com"]
[Date "2024.03.26"]
[Round "5"]
[White "ArchibaldCerveza29"]
[Black "vangulio"]
[Result "0-1"]
[WhiteElo "2375"]
[BlackElo "2556"]
[TimeControl "180+1"]
[EndTime "14:57:20 PDT"]
[Termination "vangulio won by resignation"]

1. e4 {[%clk 0:02:54.6]} 1... c5 {[%clk 0:02:58.3]} 2. Nf3 {[%clk 0:02:54.3]}
2... d6 {[%clk 0:02:58.1]} 3. d4 {[%clk 0:02:54.5]} 3... cxd4 {[%clk 0:02:59]}
4. Nxd4 {[%clk 0:02:55.2]} 4... Nf6 {[%clk 0:02:59]} 5. Nc3 {[%clk 0:02:55.5]}
5... g6 {[%clk 0:02:59.7]} 6. Be3 {[%clk 0:02:54.7]} 6... Bg7 {[%clk 0:03:00]}
7. f3 {[%clk 0:02:54.7]} 7... O-O {[%clk 0:03:00.8]} 8. Qd2 {[%clk 0:02:53.8]}
8... Nc6 {[%clk 0:03:01.2]} 9. O-O-O {[%clk 0:02:53.9]} 9... d5 {[%clk
0:03:01.1]} 10. Kb1 {[%clk 0:02:53.6]} 10... Nxd4 {[%clk 0:03:00.3]} 11. e5
{[%clk 0:02:53.3]} 11... Nf5 {[%clk 0:02:57.3]} 12. exf6 {[%clk 0:02:52.1]}
12... exf6 {[%clk 0:02:58.2]} 13. Bc5 {[%clk 0:02:25.1]} 13... d4 {[%clk
0:02:56.6]} 14. Bxf8 {[%clk 0:02:18.5]} 14... Qxf8 {[%clk 0:02:57.5]} 15. Nb5
{[%clk 0:02:14.8]} 15... Ne3 {[%clk 0:02:54.3]} 16. Re1 {[%clk 0:02:12.4]} 16...
f5 {[%clk 0:02:43.4]} 17. f4 {[%clk 0:02:09.8]} 17... Qc5 {[%clk 0:02:41.2]} 18.
c3 {[%clk 0:02:04.2]} 18... Nxf1 {[%clk 0:02:40.1]} 19. Re8+ {[%clk 0:02:01.7]}
19... Bf8 {[%clk 0:02:39.8]} 20. Qxd4 {[%clk 0:01:59]} 20... Qxb5 {[%clk
0:02:29.3]} 21. Qd8 {[%clk 0:01:56.6]} 21... Nd2+ {[%clk 0:02:23.8]} 22. Kc2
{[%clk 0:01:54.2]} 22... Qxe8 {[%clk 0:01:54.2]} 23. Qxe8 {[%clk 0:01:53.7]}
23... Ne4 {[%clk 0:01:55]} 24. Rd1 {[%clk 0:01:45.3]} 24... Nf6 {[%clk
0:01:53.9]} 25. Qd8 {[%clk 0:01:42.7]} 25... Kg7 {[%clk 0:01:53.5]} 26. h3
{[%clk 0:01:03.5]} 26... b6 {[%clk 0:01:46]} 27. Qc7 {[%clk 0:00:45.5]} 27...
Be6 {[%clk 0:00:52.8]} 28. Qb7 {[%clk 0:00:41.9]} 28... Rc8 {[%clk 0:00:50.3]}
29. Qxa7 {[%clk 0:00:26.2]} 29... Bc5 {[%clk 0:00:49.9]} 30. Qb7 {[%clk
0:00:24.8]} 30... Ne4 {[%clk 0:00:27.8]} 31. g4 {[%clk 0:00:20.7]} 31... Re8
{[%clk 0:00:25.8]} 32. g5 {[%clk 0:00:20.5]} 32... Be3 {[%clk 0:00:18.8]} 33.
Qc7 {[%clk 0:00:19.3]} 33... Ra8 {[%clk 0:00:17]} 34. Rd8 {[%clk 0:00:17.9]}
34... Rxd8 {[%clk 0:00:15.7]} 35. Qxd8 {[%clk 0:00:18.8]} 35... Bxf4 {[%clk
0:00:16.2]} 36. Qd4+ {[%clk 0:00:19]} 36... Kf8 {[%clk 0:00:15.1]} 37. h4 {[%clk
0:00:18.5]} 37... Ke7 {[%clk 0:00:14.6]} 38. Qxb6 {[%clk 0:00:18.5]} 38... Bg3
{[%clk 0:00:14.1]} 39. Qb4+ {[%clk 0:00:17.8]} 39... Ke8 {[%clk 0:00:13.7]} 40.
Qb8+ {[%clk 0:00:17.3]} 40... Bxb8 {[%clk 0:00:13]} 0-1

[Event "Late-Titled-Tuesday-Blitz-March-26-2024"]
[Site "Chess.com"]
[Date "2024.03.26"]
[Round "5"]
[White "mightysmasher"]
[Black "KetiTsatsalashvili"]
[Result "0-1"]
[WhiteElo "2595"]
[BlackElo "2459"]
[TimeControl "180+1"]
[EndTime "14:57:21 PDT"]
[Termination "KetiTsatsalashvili won on time"]

1. e4 {[%clk 0:03:00.9]} 1... c5 {[%clk 0:03:00]} 2. c3 {[%clk 0:03:00]} 2...
Nf6 {[%clk 0:02:57.2]} 3. e5 {[%clk 0:02:59.9]} 3... Nd5 {[%clk 0:02:57.1]} 4.
d4 {[%clk 0:03:00.8]} 4... e6 {[%clk 0:02:57.2]} 5. Nf3 {[%clk 0:03:00]} 5...
cxd4 {[%clk 0:02:57.3]} 6. cxd4 {[%clk 0:02:59.6]} 6... d6 {[%clk 0:02:57.6]} 7.
Bc4 {[%clk 0:02:58.4]} 7... Nc6 {[%clk 0:02:56.2]} 8. O-O {[%clk 0:02:57.7]}
8... dxe5 {[%clk 0:02:55.3]} 9. dxe5 {[%clk 0:02:52.5]} 9... Be7 {[%clk
0:02:40.2]} 10. Nc3 {[%clk 0:02:51.5]} 10... Nxc3 {[%clk 0:02:38.5]} 11. Qxd8+
{[%clk 0:02:51.1]} 11... Nxd8 {[%clk 0:02:32.7]} 12. bxc3 {[%clk 0:02:50.8]}
12... Bd7 {[%clk 0:02:31.3]} 13. Rd1 {[%clk 0:02:50.1]} 13... Rc8 {[%clk
0:02:29]} 14. Bf1 {[%clk 0:02:46.4]} 14... Rxc3 {[%clk 0:02:24.2]} 15. Bd2
{[%clk 0:02:42.3]} 15... Rc8 {[%clk 0:02:23.3]} 16. Be3 {[%clk 0:02:40.2]} 16...
a6 {[%clk 0:02:17.6]} 17. a4 {[%clk 0:02:37.1]} 17... Bc6 {[%clk 0:02:16]} 18.
Nd4 {[%clk 0:02:34.7]} 18... Bd5 {[%clk 0:02:15]} 19. Rab1 {[%clk 0:02:27.6]}
19... Nc6 {[%clk 0:02:09.7]} 20. Nf5 {[%clk 0:01:45.1]} 20... Nxe5 {[%clk
0:01:51.3]} 21. Nxg7+ {[%clk 0:01:30.4]} 21... Kf8 {[%clk 0:01:43.9]} 22. Bh6
{[%clk 0:01:20.3]} 22... Kg8 {[%clk 0:01:35.1]} 23. Nf5 {[%clk 0:01:08.9]} 23...
Bf6 {[%clk 0:01:20.5]} 24. Nd6 {[%clk 0:00:51.1]} 24... Rb8 {[%clk 0:01:16.7]}
25. Bf4 {[%clk 0:00:39.5]} 25... Kg7 {[%clk 0:01:11.1]} 26. Re1 {[%clk
0:00:37.7]} 26... Ng6 {[%clk 0:01:08.4]} 27. Bg3 {[%clk 0:00:36.9]} 27... h5
{[%clk 0:01:00.4]} 28. h3 {[%clk 0:00:32.2]} 28... h4 {[%clk 0:00:59.8]} 29. Bh2
{[%clk 0:00:31.8]} 29... Rhd8 {[%clk 0:00:55.3]} 30. Red1 {[%clk 0:00:11.3]}
30... Be5 {[%clk 0:00:53.4]} 31. Bxe5+ {[%clk 0:00:08.6]} 31... Nxe5 {[%clk
0:00:54.3]} 32. Re1 {[%clk 0:00:04.9]} 32... Nf3+ {[%clk 0:00:50]} 33. gxf3
{[%clk 0:00:04.8]} 33... Rxd6 {[%clk 0:00:50.7]} 34. f4 {[%clk 0:00:04.7]} 34...
Kf6 {[%clk 0:00:50.8]} 35. Kh2 {[%clk 0:00:03.1]} 35... Rg8 {[%clk 0:00:49]} 36.
Rb4 {[%clk 0:00:02.1]} 36... Rc8 {[%clk 0:00:45.5]} 37. Rd4 {[%clk 0:00:01.7]}
37... Rc2 {[%clk 0:00:45]} 38. Kg1 {[%clk 0:00:02.1]} 38... Rd8 {[%clk
0:00:44.2]} 39. Re5 {[%clk 0:00:02.2]} 39... Rg8+ {[%clk 0:00:44.1]} 40. Rg5
{[%clk 0:00:02.7]} 40... Rxg5+ {[%clk 0:00:44.2]} 41. fxg5+ {[%clk 0:00:03.6]}
41... Kxg5 {[%clk 0:00:44.8]} 42. Rg4+ {[%clk 0:00:04.5]} 42... Kf6 {[%clk
0:00:45]} 43. Rxh4 {[%clk 0:00:04.6]} 43... Rc1 {[%clk 0:00:44.8]} 44. Rf4+
{[%clk 0:00:04.5]} 44... Ke5 {[%clk 0:00:44.8]} 45. Rh4 {[%clk 0:00:03.1]} 45...
b5 {[%clk 0:00:44.3]} 46. axb5 {[%clk 0:00:02.8]} 46... axb5 {[%clk 0:00:45.2]}
0-1

[Event "Late-Titled-Tuesday-Blitz-March-26-2024"]
[Site "Chess.com"]
[Date "2024.03.26"]
[Round "5"]
[White "karinachess1"]
[Black "GMG"]
[Result "0-1"]
[WhiteElo "2577"]
[BlackElo "2798"]
[TimeControl "180+1"]
[EndTime "14:57:24 PDT"]
[Termination "GMG won by resignation"]

1. d4 {[%clk 0:03:00.9]} 1... d5 {[%clk 0:03:00]} 2. c4 {[%clk 0:03:01]} 2... e6
{[%clk 0:03:00.6]} 3. Nc3 {[%clk 0:03:01]} 3... a6 {[%clk 0:03:01.1]} 4. cxd5
{[%clk 0:03:00.5]} 4... exd5 {[%clk 0:03:02]} 5. Bf4 {[%clk 0:03:00.4]} 5... c6
{[%clk 0:03:01]} 6. e3 {[%clk 0:03:00.4]} 6... Bd6 {[%clk 0:03:00.1]} 7. Bxd6
{[%clk 0:02:58.5]} 7... Qxd6 {[%clk 0:03:01]} 8. Bd3 {[%clk 0:02:58.9]} 8... Nf6
{[%clk 0:02:54.7]} 9. Qc2 {[%clk 0:02:58.6]} 9... Bg4 {[%clk 0:02:50]} 10. h3
{[%clk 0:02:56]} 10... Be6 {[%clk 0:02:37.6]} 11. Nf3 {[%clk 0:02:51.1]} 11...
a5 {[%clk 0:02:35.7]} 12. Ne5 {[%clk 0:02:45.1]} 12... Nbd7 {[%clk 0:02:36]} 13.
f4 {[%clk 0:02:45.2]} 13... Nb6 {[%clk 0:02:24.6]} 14. b3 {[%clk 0:02:39.6]}
14... O-O {[%clk 0:02:00.9]} 15. O-O {[%clk 0:02:39.4]} 15... Qe7 {[%clk
0:01:52.7]} 16. Qf2 {[%clk 0:02:17.5]} 16... Ne8 {[%clk 0:01:45.6]} 17. Rae1
{[%clk 0:01:53.7]} 17... f6 {[%clk 0:01:43.5]} 18. Qh4 {[%clk 0:01:45.3]} 18...
g5 {[%clk 0:01:42.3]} 19. fxg5 {[%clk 0:01:32]} 19... fxe5 {[%clk 0:01:42.3]}
20. Bxh7+ {[%clk 0:01:05]} 20... Qxh7 {[%clk 0:01:32.6]} 21. Rxf8+ {[%clk
0:01:05.3]} 21... Kg7 {[%clk 0:01:31.9]} 22. Qxh7+ {[%clk 0:00:32.3]} 22... Kxh7
{[%clk 0:01:32.8]} 23. dxe5 {[%clk 0:00:28]} 23... Kg7 {[%clk 0:01:32.2]} 24.
Ref1 {[%clk 0:00:27.5]} 24... Nd7 {[%clk 0:01:30.8]} 25. R8f4 {[%clk 0:00:21.1]}
25... Nxe5 {[%clk 0:01:29.7]} 26. Ne2 {[%clk 0:00:20.6]} 26... Nd6 {[%clk
0:01:23.8]} 27. Nd4 {[%clk 0:00:19.5]} 27... Bd7 {[%clk 0:01:23.4]} 28. Rf6
{[%clk 0:00:12.6]} 28... Ne4 {[%clk 0:01:20.3]} 29. Nf5+ {[%clk 0:00:12.7]}
29... Bxf5 {[%clk 0:01:12.4]} 30. R6xf5 {[%clk 0:00:13.6]} 30... Re8 {[%clk
0:01:08]} 31. h4 {[%clk 0:00:13.8]} 31... Kg6 {[%clk 0:01:02.3]} 32. R5f4 {[%clk
0:00:10.9]} 32... Ng3 {[%clk 0:00:50.3]} 33. Rf6+ {[%clk 0:00:10.4]} 33... Kg7
{[%clk 0:00:48.6]} 34. Re1 {[%clk 0:00:10.7]} 34... Ng6 {[%clk 0:00:45.7]} 35.
h5 {[%clk 0:00:10.1]} 35... Nxh5 {[%clk 0:00:45.3]} 36. Rd6 {[%clk 0:00:09.5]}
36... Re7 {[%clk 0:00:37.3]} 37. Rf1 {[%clk 0:00:08.1]} 37... Ng3 {[%clk
0:00:34.7]} 38. Rff6 {[%clk 0:00:08.2]} 38... Nf8 {[%clk 0:00:33.9]} 39. Rh6
{[%clk 0:00:08.2]} 39... Ne4 {[%clk 0:00:32.8]} 40. Rd8 {[%clk 0:00:06.4]} 40...
Nxg5 {[%clk 0:00:31.5]} 41. Rh4 {[%clk 0:00:06.5]} 41... Nfe6 {[%clk 0:00:30.5]}
42. Rg4 {[%clk 0:00:06.2]} 42... Nxd8 {[%clk 0:00:30.2]} 0-1

[Event "Late-Titled-Tuesday-Blitz-March-26-2024"]
[Site "Chess.com"]
[Date "2024.03.26"]
[Round "5"]
[White "JacksterThePro"]
[Black "rhwr"]
[Result "0-1"]
[WhiteElo "2458"]
[BlackElo "2307"]
[TimeControl "180+1"]
[EndTime "14:57:29 PDT"]
[Termination "rhwr won by checkmate"]

1. d4 {[%clk 0:03:00.9]} 1... c5 {[%clk 0:02:59.8]} 2. d5 {[%clk 0:02:54.2]}
2... d6 {[%clk 0:02:59.7]} 3. e4 {[%clk 0:02:50.1]} 3... Nf6 {[%clk 0:02:59.1]}
4. Nc3 {[%clk 0:02:43.8]} 4... g6 {[%clk 0:02:59.6]} 5. Be2 {[%clk 0:02:40.1]}
5... Bg7 {[%clk 0:03:00]} 6. Nf3 {[%clk 0:02:40.3]} 6... O-O {[%clk 0:03:00.6]}
7. O-O {[%clk 0:02:40]} 7... Na6 {[%clk 0:02:57.2]} 8. Nd2 {[%clk 0:02:36.9]}
8... Nc7 {[%clk 0:02:54.8]} 9. a4 {[%clk 0:02:36.1]} 9... Bd7 {[%clk 0:02:43.3]}
10. f3 {[%clk 0:01:59.7]} 10... a6 {[%clk 0:02:42.4]} 11. a5 {[%clk 0:01:53.3]}
11... Nb5 {[%clk 0:02:41.1]} 12. Nc4 {[%clk 0:01:39.7]} 12... Ne8 {[%clk
0:02:34.3]} 13. Nxb5 {[%clk 0:01:32.9]} 13... axb5 {[%clk 0:02:31.5]} 14. Nb6
{[%clk 0:01:31.7]} 14... Ra7 {[%clk 0:02:27.3]} 15. c3 {[%clk 0:01:04.6]} 15...
Nc7 {[%clk 0:02:23.8]} 16. Be3 {[%clk 0:01:00.9]} 16... Na8 {[%clk 0:02:19.1]}
17. Nxd7 {[%clk 0:00:58.2]} 17... Qxd7 {[%clk 0:02:18.8]} 18. Qb3 {[%clk
0:00:57.5]} 18... c4 {[%clk 0:02:10.1]} 19. Qc2 {[%clk 0:00:50.1]} 19... Ra6
{[%clk 0:02:09.5]} 20. b3 {[%clk 0:00:50.1]} 20... Rc8 {[%clk 0:02:04.9]} 21.
bxc4 {[%clk 0:00:48.3]} 21... bxc4 {[%clk 0:02:04.7]} 22. Rfb1 {[%clk
0:00:48.2]} 22... Qc7 {[%clk 0:01:44.8]} 23. Ra4 {[%clk 0:00:31.4]} 23... Rxa5
{[%clk 0:01:37.8]} 24. Bb6 {[%clk 0:00:20]} 24... Nxb6 {[%clk 0:01:06.3]} 25.
Rxa5 {[%clk 0:00:20.3]} 25... Nd7 {[%clk 0:00:57.8]} 26. Ra4 {[%clk 0:00:18.1]}
26... Qc5+ {[%clk 0:00:52.5]} 27. Kh1 {[%clk 0:00:17]} 27... b5 {[%clk
0:00:50.6]} 28. Ra5 {[%clk 0:00:14]} 28... Qe3 {[%clk 0:00:36.4]} 29. Raxb5
{[%clk 0:00:11.1]} 29... Bxc3 {[%clk 0:00:33.1]} 30. Rb7 {[%clk 0:00:08.2]}
30... Nc5 {[%clk 0:00:31.6]} 31. Rb8 {[%clk 0:00:06]} 31... Rxb8 {[%clk
0:00:30.3]} 32. Rxb8+ {[%clk 0:00:06.8]} 32... Kg7 {[%clk 0:00:30.5]} 33. h3
{[%clk 0:00:02.4]} 33... Bd4 {[%clk 0:00:29.2]} 34. Kh2 {[%clk 0:00:01.9]} 34...
Qg1+ {[%clk 0:00:25.2]} 35. Kg3 {[%clk 0:00:01.9]} 35... Qf2+ {[%clk 0:00:21.2]}
36. Kh2 {[%clk 0:00:01.5]} 36... Be5+ {[%clk 0:00:20.4]} 37. Kh1 {[%clk
0:00:01.1]} 37... Qe1+ {[%clk 0:00:20.8]} 38. Bf1 {[%clk 0:00:01]} 38... Qxf1#
{[%clk 0:00:21]} 0-1

[Event "Late-Titled-Tuesday-Blitz-March-26-2024"]
[Site "Chess.com"]
[Date "2024.03.26"]
[Round "5"]
[White "WindWhistler11"]
[Black "Korchmar_Vasiliy"]
[Result "1-0"]
[WhiteElo "2469"]
[BlackElo "2689"]
[TimeControl "180+1"]
[EndTime "14:57:30 PDT"]
[Termination "WindWhistler11 won by checkmate"]

1. Nf3 {[%clk 0:03:00.9]} 1... d5 {[%clk 0:02:58.1]} 2. g3 {[%clk 0:03:00.6]}
2... g6 {[%clk 0:02:58.2]} 3. Bg2 {[%clk 0:03:00.5]} 3... Bg7 {[%clk 0:02:58.7]}
4. c4 {[%clk 0:03:00.7]} 4... c6 {[%clk 0:02:57.8]} 5. Qc2 {[%clk 0:02:57]} 5...
dxc4 {[%clk 0:02:57.6]} 6. Qxc4 {[%clk 0:02:56.8]} 6... Nh6 {[%clk 0:02:57.9]}
7. O-O {[%clk 0:02:56.6]} 7... Nf5 {[%clk 0:02:58.2]} 8. e3 {[%clk 0:02:53.6]}
8... O-O {[%clk 0:02:58]} 9. d4 {[%clk 0:02:52.5]} 9... Nd6 {[%clk 0:02:57.7]}
10. Qe2 {[%clk 0:02:49]} 10... a5 {[%clk 0:02:46.4]} 11. Rd1 {[%clk 0:02:47.5]}
11... Na6 {[%clk 0:02:46.5]} 12. Nc3 {[%clk 0:02:45.5]} 12... Nb4 {[%clk
0:02:39.6]} 13. e4 {[%clk 0:02:40.2]} 13... Be6 {[%clk 0:02:17.8]} 14. b3 {[%clk
0:01:46.8]} 14... a4 {[%clk 0:02:04.2]} 15. Nxa4 {[%clk 0:01:43.6]} 15... Nxa2
{[%clk 0:02:04.2]} 16. Qxa2 {[%clk 0:01:35.6]} 16... b5 {[%clk 0:02:03.5]} 17.
d5 {[%clk 0:01:32.4]} 17... cxd5 {[%clk 0:01:58.7]} 18. exd5 {[%clk 0:01:31.6]}
18... Bxa1 {[%clk 0:01:33.7]} 19. Qxa1 {[%clk 0:01:22.5]} 19... Bd7 {[%clk
0:01:24.4]} 20. Bh6 {[%clk 0:01:16.4]} 20... f6 {[%clk 0:01:16.8]} 21. Bxf8
{[%clk 0:00:53.8]} 21... Qxf8 {[%clk 0:01:17.7]} 22. Nd4 {[%clk 0:00:52.5]}
22... bxa4 {[%clk 0:01:18]} 23. Ne6 {[%clk 0:00:47.1]} 23... Qc8 {[%clk
0:00:56.6]} 24. Rc1 {[%clk 0:00:40.3]} 24... Qb8 {[%clk 0:00:47.6]} 25. bxa4
{[%clk 0:00:34.4]} 25... Rxa4 {[%clk 0:00:48.5]} 26. Qb1 {[%clk 0:00:30.6]}
26... Rb4 {[%clk 0:00:46]} 27. Qd3 {[%clk 0:00:28.4]} 27... Rb2 {[%clk
0:00:46.2]} 28. Qe3 {[%clk 0:00:25.7]} 28... Nf5 {[%clk 0:00:44.6]} 29. Qc5
{[%clk 0:00:21.8]} 29... h5 {[%clk 0:00:30.6]} 30. Be4 {[%clk 0:00:21.4]} 30...
Qe5 {[%clk 0:00:23.2]} 31. Bxf5 {[%clk 0:00:19.5]} 31... Qxf5 {[%clk 0:00:24.1]}
32. Nf4 {[%clk 0:00:13.2]} 32... Kf7 {[%clk 0:00:18.5]} 33. Re1 {[%clk
0:00:11.5]} 33... g5 {[%clk 0:00:08.5]} 34. Qxe7+ {[%clk 0:00:11.3]} 34... Kg8
{[%clk 0:00:09.2]} 35. Qd8+ {[%clk 0:00:11.1]} 35... Kg7 {[%clk 0:00:08.9]} 36.
Re7+ {[%clk 0:00:11.4]} 36... Kh6 {[%clk 0:00:09.5]} 37. Qh8+ {[%clk 0:00:11.4]}
37... Qh7 {[%clk 0:00:09.1]} 38. Qxh7# {[%clk 0:00:10.3]} 1-0

[Event "Late-Titled-Tuesday-Blitz-March-26-2024"]
[Site "Chess.com"]
[Date "2024.03.26"]
[Round "5"]
[White "Airquake"]
[Black "Dontmesswithme_2"]
[Result "1-0"]
[WhiteElo "2677"]
[BlackElo "2419"]
[TimeControl "180+1"]
[EndTime "14:57:32 PDT"]
[Termination "Airquake won on time"]

1. g3 {[%clk 0:02:53.6]} 1... d5 {[%clk 0:02:58.8]} 2. Bg2 {[%clk 0:02:54.5]}
2... Nf6 {[%clk 0:02:58.1]} 3. Nf3 {[%clk 0:02:36.8]} 3... Bf5 {[%clk
0:02:57.3]} 4. O-O {[%clk 0:02:37.7]} 4... e6 {[%clk 0:02:56.1]} 5. d3 {[%clk
0:02:38.4]} 5... h6 {[%clk 0:02:55.4]} 6. Nbd2 {[%clk 0:02:39.3]} 6... Be7
{[%clk 0:02:53.9]} 7. b3 {[%clk 0:02:40.2]} 7... Nbd7 {[%clk 0:02:52]} 8. Bb2
{[%clk 0:02:40.6]} 8... c6 {[%clk 0:02:50.9]} 9. Re1 {[%clk 0:02:40.5]} 9... Bh7
{[%clk 0:02:50.2]} 10. e4 {[%clk 0:02:40.9]} 10... O-O {[%clk 0:02:49.9]} 11.
Qe2 {[%clk 0:02:38.8]} 11... a5 {[%clk 0:02:46.2]} 12. a3 {[%clk 0:02:38.2]}
12... Nc5 {[%clk 0:02:13.8]} 13. Rad1 {[%clk 0:02:35.2]} 13... Qc7 {[%clk
0:02:06.6]} 14. exd5 {[%clk 0:02:34.6]} 14... cxd5 {[%clk 0:02:05.9]} 15. Nd4
{[%clk 0:02:34.1]} 15... Qb6 {[%clk 0:01:56.1]} 16. Kh1 {[%clk 0:02:28.2]} 16...
Rac8 {[%clk 0:01:53.4]} 17. f4 {[%clk 0:02:27.2]} 17... Ncd7 {[%clk 0:01:40.2]}
18. N2f3 {[%clk 0:02:21.1]} 18... Bd6 {[%clk 0:01:36.4]} 19. a4 {[%clk
0:01:59.9]} 19... Rfe8 {[%clk 0:01:34]} 20. Nb5 {[%clk 0:01:58.8]} 20... Bb4
{[%clk 0:01:31.8]} 21. Bd4 {[%clk 0:01:54.1]} 21... Bc5 {[%clk 0:01:29.4]} 22.
Bxc5 {[%clk 0:01:50]} 22... Qxc5 {[%clk 0:01:30.3]} 23. Rd2 {[%clk 0:01:45.5]}
23... Nb8 {[%clk 0:00:44.6]} 24. Ne5 {[%clk 0:01:32]} 24... Nc6 {[%clk 0:00:45]}
25. c4 {[%clk 0:01:21.9]} 25... Nd4 {[%clk 0:00:37]} 26. Qd1 {[%clk 0:01:12.1]}
26... Rcd8 {[%clk 0:00:26.4]} 27. Rb2 {[%clk 0:00:48.8]} 27... dxc4 {[%clk
0:00:20.4]} 28. bxc4 {[%clk 0:00:48.7]} 28... Nc6 {[%clk 0:00:15]} 29. Qc1
{[%clk 0:00:08.5]} 29... Nxe5 {[%clk 0:00:12]} 30. fxe5 {[%clk 0:00:09.4]} 30...
Ng4 {[%clk 0:00:11.7]} 31. d4 {[%clk 0:00:09.7]} 31... Qe7 {[%clk 0:00:07.2]}
32. c5 {[%clk 0:00:09.3]} 32... h5 {[%clk 0:00:03.9]} 33. Nd6 {[%clk 0:00:08.9]}
33... Rf8 {[%clk 0:00:03.5]} 34. Rxb7 {[%clk 0:00:09.2]} 34... Rd7 {[%clk
0:00:01.8]} 35. c6 {[%clk 0:00:09.6]} 35... Rxb7 {[%clk 0:00:01.4]} 36. cxb7
{[%clk 0:00:09.5]} 36... Qd7 {[%clk 0:00:01.5]} 37. Qc8 {[%clk 0:00:08.6]} 1-0

[Event "Late-Titled-Tuesday-Blitz-March-26-2024"]
[Site "Chess.com"]
[Date "2024.03.26"]
[Round "5"]
[White "thesupera12"]
[Black "GWR2024"]
[Result "1-0"]
[WhiteElo "2429"]
[BlackElo "2182"]
[TimeControl "180+1"]
[EndTime "14:57:32 PDT"]
[Termination "thesupera12 won by resignation"]

1. Nf3 {[%clk 0:03:00.9]} 1... f5 {[%clk 0:02:59.1]} 2. d3 {[%clk 0:02:57.9]}
2... d5 {[%clk 0:02:58.1]} 3. c4 {[%clk 0:02:55.8]} 3... dxc4 {[%clk 0:02:57.4]}
4. Qa4+ {[%clk 0:02:55.6]} 4... Nc6 {[%clk 0:02:56.3]} 5. Qxc4 {[%clk
0:02:56.5]} 5... Nf6 {[%clk 0:02:55.8]} 6. Bg5 {[%clk 0:02:54.5]} 6... e6 {[%clk
0:02:53.1]} 7. g3 {[%clk 0:02:52.8]} 7... Be7 {[%clk 0:02:52.6]} 8. Bg2 {[%clk
0:02:52.8]} 8... O-O {[%clk 0:02:52.2]} 9. O-O {[%clk 0:02:53.4]} 9... h6 {[%clk
0:02:51]} 10. Be3 {[%clk 0:02:51]} 10... Nd5 {[%clk 0:02:48.3]} 11. Bc5 {[%clk
0:02:40.2]} 11... Bxc5 {[%clk 0:02:46.3]} 12. Qxc5 {[%clk 0:02:41.1]} 12... Qd6
{[%clk 0:02:45.3]} 13. Qc4 {[%clk 0:02:35]} 13... Qb4 {[%clk 0:02:41.1]} 14.
Qxb4 {[%clk 0:02:32.6]} 14... Ncxb4 {[%clk 0:02:37.7]} 15. Rc1 {[%clk
0:02:32.1]} 15... Nc6 {[%clk 0:02:34.1]} 16. Nc3 {[%clk 0:02:31.6]} 16... Nxc3
{[%clk 0:02:31.7]} 17. Rxc3 {[%clk 0:02:30.2]} 17... e5 {[%clk 0:02:27.4]} 18.
Rac1 {[%clk 0:02:27.2]} 18... Bd7 {[%clk 0:02:25.8]} 19. Nd2 {[%clk 0:02:23.6]}
19... Rad8 {[%clk 0:02:19.4]} 20. Nc4 {[%clk 0:02:22.7]} 20... Rfe8 {[%clk
0:02:14.6]} 21. a3 {[%clk 0:02:22.5]} 21... Nd4 {[%clk 0:02:10]} 22. Kf1 {[%clk
0:02:17.8]} 22... c6 {[%clk 0:02:07.7]} 23. e3 {[%clk 0:02:08.3]} 23... Nb5
{[%clk 0:02:06.7]} 24. Rb3 {[%clk 0:02:04.3]} 24... Be6 {[%clk 0:01:59]} 25. a4
{[%clk 0:02:04.2]} 25... Nd6 {[%clk 0:01:55.6]} 26. Rb4 {[%clk 0:01:58.3]} 26...
Nxc4 {[%clk 0:01:53]} 27. dxc4 {[%clk 0:01:59.2]} 27... Rd7 {[%clk 0:01:42.2]}
28. Ke2 {[%clk 0:01:59]} 28... Red8 {[%clk 0:01:41.5]} 29. Rc2 {[%clk
0:01:58.8]} 29... e4 {[%clk 0:01:40.3]} 30. a5 {[%clk 0:01:58.1]} 30... Kf7
{[%clk 0:01:32]} 31. f3 {[%clk 0:01:57.1]} 31... exf3+ {[%clk 0:01:28.5]} 32.
Bxf3 {[%clk 0:01:58]} 32... g5 {[%clk 0:01:28]} 33. a6 {[%clk 0:01:56.2]} 33...
bxa6 {[%clk 0:01:26.4]} 34. Bxc6 {[%clk 0:01:55.6]} 34... Rc7 {[%clk 0:01:23.3]}
35. Bg2 {[%clk 0:01:48.9]} 35... Ke7 {[%clk 0:01:22.4]} 36. Ra4 {[%clk
0:01:46.8]} 36... Bc8 {[%clk 0:01:20.6]} 37. c5 {[%clk 0:01:41.5]} 37... Bb7
{[%clk 0:01:14.7]} 38. Bxb7 {[%clk 0:01:40.3]} 38... Rxb7 {[%clk 0:01:15.3]} 39.
Rxa6 {[%clk 0:01:40.2]} 39... Rc8 {[%clk 0:01:14.6]} 40. Rxh6 {[%clk 0:01:40.6]}
40... Rb3 {[%clk 0:01:12.7]} 41. Rh7+ {[%clk 0:01:40.5]} 41... Ke6 {[%clk
0:01:13]} 42. Rxa7 {[%clk 0:01:41]} 42... Kd5 {[%clk 0:01:10.4]} 43. c6 {[%clk
0:01:36.3]} 43... Rxc6 {[%clk 0:01:09.7]} 44. Ra5+ {[%clk 0:01:36.4]} 44... Kd6
{[%clk 0:01:08.6]} 45. Rxc6+ {[%clk 0:01:36.5]} 45... Kxc6 {[%clk 0:01:09.5]}
46. Rxf5 {[%clk 0:01:37.1]} 46... Rxb2+ {[%clk 0:01:09.8]} 47. Kf3 {[%clk
0:01:37.7]} 47... Rxh2 {[%clk 0:01:09.8]} 48. Rxg5 {[%clk 0:01:38.2]} 48... Kd7
{[%clk 0:01:10.2]} 49. Re5 {[%clk 0:01:37.5]} 49... Kd6 {[%clk 0:01:08.3]} 50.
Ke4 {[%clk 0:01:36.4]} 50... Rg2 {[%clk 0:01:06.9]} 51. Rg5 {[%clk 0:01:36.5]}
51... Ke6 {[%clk 0:01:06.2]} 52. Rg6+ {[%clk 0:01:36.7]} 52... Kf7 {[%clk
0:01:06.1]} 53. Rg4 {[%clk 0:01:37.2]} 53... Kf6 {[%clk 0:01:05.6]} 54. Kf3
{[%clk 0:01:35]} 54... Ra2 {[%clk 0:01:05]} 55. Rb4 {[%clk 0:01:35]} 55... Kg6
{[%clk 0:00:56.5]} 56. Kg4 {[%clk 0:01:33.8]} 56... Ra7 {[%clk 0:00:53.3]} 57.
Rb6+ {[%clk 0:01:33.3]} 57... Kg7 {[%clk 0:00:53]} 58. e4 {[%clk 0:01:33.6]}
58... Ra5 {[%clk 0:00:52.4]} 59. Kf4 {[%clk 0:01:33.3]} 59... Rc5 {[%clk
0:00:51.7]} 60. g4 {[%clk 0:01:32.9]} 60... Rc1 {[%clk 0:00:51.3]} 61. Kf5
{[%clk 0:01:32.2]} 61... Rf1+ {[%clk 0:00:50]} 62. Ke6 {[%clk 0:01:32]} 62...
Rg1 {[%clk 0:00:49.4]} 63. Rb7+ {[%clk 0:01:32.2]} 63... Kg6 {[%clk 0:00:48.9]}
64. Rb8 {[%clk 0:01:30.9]} 64... Kg5 {[%clk 0:00:47.4]} 65. e5 {[%clk
0:01:30.6]} 65... Re1 {[%clk 0:00:43]} 66. Rg8+ {[%clk 0:01:30.9]} 66... Kf4
{[%clk 0:00:42.7]} 67. Rf8+ {[%clk 0:01:29.8]} 67... Kxg4 {[%clk 0:00:42.4]} 68.
Kd6 {[%clk 0:01:30.1]} 68... Kg5 {[%clk 0:00:41]} 69. e6 {[%clk 0:01:28.6]}
69... Kg6 {[%clk 0:00:40.8]} 70. Kd7 {[%clk 0:01:26.6]} 70... Kg7 {[%clk
0:00:39]} 71. e7 {[%clk 0:01:23.5]} 71... Rd1+ {[%clk 0:00:37.7]} 72. Kc6 {[%clk
0:01:23.8]} 72... Rc1+ {[%clk 0:00:36.9]} 73. Kb5 {[%clk 0:01:24.3]} 73... Rb1+
{[%clk 0:00:36]} 74. Kc4 {[%clk 0:01:24.6]} 74... Rc1+ {[%clk 0:00:35.8]} 75.
Kb3 {[%clk 0:01:24.8]} 1-0